fUSD/lending_fUSD_20250302
["ID","MTS","AMOUNT","RATE_DAILY","PERIOD"]
[355153197,1740937834023,-500.0,0.00024657,2]
[355153198,1740937834034,-505.16766979,0.00024657,2]
[355153199,1740937834044,-502.79458442,0.00024657,2]
[355153200,1740937834056,-501.57527434,0.00024657,2]
[355153201,1740937834068,-501.64118931,0.00024657,2]
[355153202,1740937834078,-500.0,0.00024657,2]
[355153203,1740937834089,-502.18901559,0.00024657,2]
[355153204,1740937834099,-500.0,0.00024657,2]
[355153205,1740937834110,-500.0,0.00024657,2]
[355153207,1740937834121,-500.0,0.00024657,2]
[355153209,1740937834135,-1114.43,0.00024657,2]
[355153211,1740937834145,-500.0,0.00024657,2]
[355153213,1740937834155,-678.56,0.00024657,2]
[355153215,1740937834170,-500.0,0.00024657,2]
[355153217,1740937834181,-500.0,0.00024657,2]
[355153219,1740937834192,-500.0,0.00024657,2]
[355153221,1740937834202,-701.59,0.00024657,2]
[355153223,1740937834212,-500.0,0.00024657,2]
[355153225,1740937834223,-500.0,0.00024657,2]
[355153227,1740937834234,-500.0,0.00024657,2]
[355153229,1740937834243,-500.0,0.00024657,2]
[355153231,1740937834253,-170.79066141,0.00024697,2]
[355153233,1740937834263,-10234.74962825,0.00024698,2]
[355153235,1740937834274,-318.1165487,0.00024698,2]
[355153237,1740937834283,-992.8453,0.00024698,2]
[355153238,1740937834294,-3632.37953565,0.00024698,2]
[355153241,1740937834307,-536.09166999,0.00024698,2]
[355153256,1740937834464,-15525.08899436,0.00024698,2]
[355153258,1740937834474,-400.0,0.000247,9]
[355153260,1740937834485,-362.39064584,0.00024728,3]
[355153263,1740937834496,-576.18,0.00024786,2]
[355153265,1740937834506,-500.0,0.00024796,2]
[355153267,1740937834516,-500.0,0.00024796,2]
[355153269,1740937834527,-1027.09,0.00024796,2]
[355153271,1740937834537,-500.0,0.00024796,2]
[355153273,1740937834547,-500.0,0.00024796,2]
[355153275,1740937834557,-661.31,0.00024796,2]
[355153277,1740937834567,-500.0,0.00024796,2]
[355153279,1740937834578,-500.0,0.00024796,2]
[355153281,1740937834588,-500.0,0.00024796,2]
[355153283,1740937834598,-664.68,0.00024796,2]
[355153285,1740937834608,-500.0,0.00024796,2]
[355153287,1740937834618,-500.0,0.00024796,2]
[355153289,1740937834628,-500.0,0.00024796,2]
[355153291,1740937834637,-688.44,0.00024796,2]
[355153293,1740937834647,-799.43,0.00024796,2]
[355153295,1740937834656,-1011.96,0.00024796,2]
[355153297,1740937834670,-500.0,0.00024796,2]
[355153299,1740937834679,-980.75,0.00024796,2]
[355153301,1740937834690,-547.39,0.00024796,2]
[355153303,1740937834700,-758.27,0.00024796,2]
[355153305,1740937834709,-500.0,0.00024796,2]
[355153307,1740937834720,-638.55,0.00024796,2]
[355153309,1740937834731,-500.0,0.00024796,2]
[355153311,1740937834743,-500.0,0.00024796,2]
[355153313,1740937834754,-500.0,0.00024796,2]
[355153315,1740937834765,-500.0,0.00024796,2]
[355153317,1740937834775,-500.0,0.00024796,2]
[355153319,1740937834787,-500.0,0.00024796,2]
[355153321,1740937834797,-537.89,0.00024796,2]
[355153323,1740937834807,-1342.57,0.00024796,2]
[355153324,1740937834817,-500.0,0.00024796,2]
[355153326,1740937834828,-500.0,0.00024796,2]
[355153328,1740937834838,-500.0,0.00024796,2]
[355153330,1740937834848,-501.29,0.00024796,2]
[355153332,1740937834858,-500.0,0.00024797,2]
[355153334,1740937834868,-500.0,0.00024797,2]
[355153336,1740937834878,-500.0,0.00024797,2]
[355153338,1740937834888,-503.22896411,0.00024797,2]
[355153340,1740937834898,-500.0,0.00024797,2]
[355153342,1740937834913,-500.0,0.00024797,2]
[355153344,1740937834929,-500.0,0.00024797,2]
[355153346,1740937834938,-500.0,0.00024797,2]
[355153348,1740937834950,-500.0,0.00024797,2]
[355153350,1740937834960,-500.0,0.00024797,2]
[355153352,1740937834970,-500.0,0.00024797,2]
[355153355,1740937834981,-500.0,0.00024797,2]
[355153357,1740937834993,-508.16780669,0.00024797,2]
[355153359,1740937835004,-503.31836679,0.00024797,2]
[355153361,1740937835013,-500.0,0.00024797,2]
[355153363,1740937835023,-500.0,0.00024797,2]
[355153365,1740937835033,-500.0,0.00024797,2]
[355153367,1740937835044,-500.0,0.00024797,2]
[355153369,1740937835054,-500.0,0.00024797,2]
[355153370,1740937835063,-500.0,0.00024797,2]
[355153373,1740937835075,-500.0,0.00024797,2]
[355153375,1740937835085,-500.0,0.00024797,2]
[355153377,1740937835094,-500.0,0.00024797,2]
[355153378,1740937835105,-428.42208308,0.00024797,2]
[355153381,1740937835120,-71.57791692,0.00024797,2]
[355153383,1740937835131,-178.39514125,0.00024797,2]
[355153385,1740937835143,-500.0,0.00024797,2]
[355153387,1740937835154,-500.0,0.00024797,2]
[355153389,1740937835164,-500.0,0.00024797,2]
[355153392,1740937835179,-500.0,0.00024797,2]
[355153394,1740937835191,-500.0,0.00024797,2]
[355153396,1740937835201,-500.0,0.00024797,2]
[355153398,1740937835211,-500.0,0.00024797,2]
[355153400,1740937835221,-504.17539041,0.00024797,2]
[355153402,1740937835231,-500.0,0.00024797,2]
[355153403,1740937835241,-502.96055832,0.00024797,2]
[355153405,1740937835251,-500.0,0.00024797,2]
[355153407,1740937835262,-500.0,0.00024797,2]
[355153409,1740937835272,-500.0,0.00024797,2]
[355153411,1740937835285,-506.06405547,0.00024797,2]
[355153414,1740937835295,-510.39657993,0.00024797,2]
[355153416,1740937835305,-500.0,0.00024797,2]
[355153418,1740937835316,-92.9822312,0.00024797,2]
[355153453,1740937835684,-407.0177688,0.00024797,2]
[355153455,1740937835695,-316.9822312,0.00024797,2]
[355153458,1740937835713,-183.0177688,0.00024797,2]
[355153460,1740937835722,-500.0,0.00024797,2]
[355153462,1740937835732,-500.0,0.00024797,2]
[355153464,1740937835743,-500.0,0.00024797,2]
[355153466,1740937835754,-500.0,0.00024797,2]
[355153468,1740937835764,-500.0,0.00024797,2]
[355153470,1740937835775,-500.0,0.00024797,2]
[355153473,1740937835787,-500.0,0.00024797,2]
[355153475,1740937835797,-503.36649622,0.00024797,2]
[355153477,1740937835807,-500.0,0.00024797,2]
[355153479,1740937835818,-781.19,0.00024797,2]
[355153481,1740937835828,-500.0,0.00024797,2]
[355153483,1740937835838,-500.0,0.00024797,2]
[355153485,1740937835848,-500.0,0.00024797,2]
[355153486,1740937835859,-500.0,0.00024797,2]
[355153489,1740937835869,-500.0,0.00024797,2]
[355153491,1740937835880,-599.7,0.00024797,2]
[355153493,1740937835890,-500.0,0.00024797,2]
[355153495,1740937835900,-500.0,0.00024797,2]
[355153496,1740937835912,-1328.36,0.00024797,2]
[355153498,1740937835927,-500.0,0.00024797,2]
[355153500,1740937835937,-500.0,0.00024797,2]
[355153502,1740937835949,-509.06675988,0.00024797,2]
[355153504,1740937835959,-500.0,0.00024797,2]
[355153506,1740937835969,-500.0,0.00024797,2]
[355153508,1740937835980,-551.12601248,0.00024797,2]
[355153510,1740937835990,-500.0,0.00024797,2]
[355153512,1740937836002,-529.88601672,0.00024797,2]
[355153514,1740937836014,-500.0,0.00024797,2]
[355153516,1740937836026,-400.963399,0.00024797,2]
[355153518,1740937836037,-500.0,0.00024797,2]
[355153520,1740937836048,-877.08,0.00024797,2]
[355153522,1740937836058,-500.0,0.00024797,2]
[355153524,1740937836068,-1696.63,0.00024797,2]
[355153526,1740937836078,-500.0,0.00024797,2]
[355153528,1740937836097,-500.0,0.00024797,2]
[355153531,1740937836107,-500.0,0.00024797,2]
[355153533,1740937836117,-500.0,0.00024797,2]
[355153535,1740937836127,-500.0,0.00024797,2]
[355153537,1740937836136,-500.0,0.00024797,2]
[355153539,1740937836146,-500.0,0.00024797,2]
[355153541,1740937836156,-312.078972,0.00024797,2]
[355153543,1740937836170,-500.0,0.00024797,2]
[355153545,1740937836179,-500.0,0.00024797,2]
[355153547,1740937836190,-500.0,0.00024797,2]
[355153549,1740937836200,-992.81,0.00024797,2]
[355153551,1740937836210,-500.0,0.00024797,2]
[355153553,1740937836219,-162.029449,0.00024797,2]
[355153555,1740937836230,-500.0,0.00024797,2]
[355153557,1740937836240,-500.0,0.00024797,2]
[355153559,1740937836250,-500.0,0.00024797,2]
[355153561,1740937836259,-500.0,0.00024797,2]
[355153563,1740937836269,-500.0,0.00024797,2]
[355153565,1740937836282,-500.0,0.00024797,2]
[355153567,1740937836292,-151.969528,0.00024797,2]
[355153569,1740937836302,-500.0,0.00024797,2]
[355153571,1740937836312,-1164.54,0.00024797,2]
[355153573,1740937836323,-500.0,0.00024797,2]
[355153575,1740937836333,-500.0,0.00024797,2]
[355153578,1740937836344,-3123.18,0.00024797,2]
[355153580,1740937836354,-500.0,0.00024797,2]
[355153582,1740937836364,-500.0,0.00024797,2]
[355153584,1740937836373,-500.0,0.00024797,2]
[355153586,1740937836383,-1410.0,0.00024797,2]
[355153588,1740937836395,-500.0,0.00024797,2]
[355153590,1740937836405,-533.02865364,0.00024797,2]
[355153592,1740937836415,-500.0,0.00024797,2]
[355153593,1740937836428,-500.0,0.00024797,2]
[355153596,1740937836438,-500.0,0.00024797,2]
[355153598,1740937836448,-500.0,0.00024797,2]
[355153600,1740937836459,-500.0,0.00024797,2]
[355153602,1740937836469,-500.0,0.00024797,2]
[355153604,1740937836479,-1234.93,0.00024797,2]
[355153606,1740937836490,-500.0,0.00024797,2]
[355153608,1740937836500,-500.0,0.00024797,2]
[355153610,1740937836510,-1043.6,0.00024797,2]
[355153612,1740937836521,-500.0,0.00024797,2]
[355153614,1740937836532,-500.0,0.00024797,2]
[355153616,1740937836542,-500.0,0.00024797,2]
[355153618,1740937836552,-500.0,0.00024797,2]
[355153620,1740937836562,-500.0,0.00024797,2]
[355153623,1740937836572,-500.0,0.00024797,2]
[355153625,1740937836583,-1694.27,0.00024797,2]
[355153627,1740937836594,-500.0,0.00024797,2]
[355153629,1740937836604,-200.0,0.00024797,2]
[355153631,1740937836615,-500.0,0.00024797,2]
[355153633,1740937836625,-500.0,0.00024797,2]
[355153635,1740937836636,-500.0,0.00024797,2]
[355153637,1740937836648,-500.0,0.00024797,2]
[355153639,1740937836660,-500.0,0.00024797,2]
[355153641,1740937836674,-500.0,0.00024797,2]
[355153643,1740937836686,-1334.61,0.00024797,2]
[355153646,1740937836698,-500.0,0.00024797,2]
[355153648,1740937836708,-500.0,0.00024797,2]
[355153650,1740937836719,-500.0,0.00024797,2]
[355153652,1740937836730,-784.6,0.00024797,2]
[355153654,1740937836741,-500.0,0.00024797,2]
[355153656,1740937836752,-500.0,0.00024797,2]
[355153658,1740937836764,-500.0,0.00024797,2]
[355153659,1740937836775,-500.0,0.00024797,2]
[355153660,1740937836787,-500.0,0.00024797,2]
[355153661,1740937836797,-500.0,0.00024797,2]
[355153662,1740937836807,-501.09971012,0.00024797,2]
[355153663,1740937836819,-1672.23,0.00024797,2]
[355153664,1740937836830,-500.0,0.00024797,2]
[355153665,1740937836841,-332.84743757,0.00024797,2]
[355153666,1740937836852,-500.0,0.00024797,2]
[355153667,1740937836863,-262.38192951,0.00024797,2]
[355153668,1740937836875,-500.0,0.00024797,2]
[355153669,1740937836886,-500.0,0.00024797,2]
[355153670,1740937836897,-500.0,0.00024797,2]
[355153671,1740937836909,-2496.59,0.00024797,2]
[355153672,1740937836925,-513.25483639,0.00024797,2]
[355153673,1740937836936,-314.40612067,0.00024797,2]
[355153675,1740937836948,-500.0,0.00024797,2]
[355153678,1740937836961,-1537.3,0.00024797,2]
[355153680,1740937836971,-500.0,0.00024797,2]
[355153682,1740937836981,-500.0,0.00024797,2]
[355153684,1740937836992,-500.0,0.00024797,2]
[355153686,1740937837004,-500.0,0.00024797,2]
[355153688,1740937837015,-500.0,0.00024797,2]
[355153690,1740937837025,-500.0,0.00024797,2]
[355153692,1740937837036,-500.0,0.00024797,2]
[355153694,1740937837046,-500.0,0.00024797,2]
[355153696,1740937837056,-502.72260939,0.00024797,2]
[355153698,1740937837068,-504.34634397,0.00024797,2]
[355153700,1740937837078,-500.0,0.00024797,2]
[355153702,1740937837089,-500.0,0.00024797,2]
[355153704,1740937837100,-500.0,0.00024797,2]
[355153706,1740937837111,-501.00360562,0.00024797,2]
[355153708,1740937837122,-500.0,0.00024797,2]
[355153710,1740937837135,-500.0,0.00024797,2]
[355153712,1740937837146,-500.0,0.00024797,2]
[355153714,1740937837157,-500.0,0.00024797,2]
[355153716,1740937837173,-381.56,0.00024797,2]
[355153718,1740937837184,-500.0,0.00024797,2]
[355153720,1740937837196,-1129.86,0.00024797,2]
[355153723,1740937837207,-500.0,0.00024797,2]
[355153725,1740937837218,-907.66,0.00024797,2]
[355153727,1740937837229,-500.66606976,0.00024797,2]
[355153729,1740937837240,-506.45649347,0.00024797,2]
[355153731,1740937837250,-500.0,0.00024797,2]
[355153733,1740937837261,-500.0,0.00024797,2]
[355153735,1740937837272,-500.0,0.00024797,2]
[355153737,1740937837283,-500.0,0.00024797,2]
[355153739,1740937837294,-500.0,0.00024797,2]
[355153741,1740937837305,-500.0,0.00024797,2]
[355153743,1740937837315,-500.0,0.00024797,2]
[355153745,1740937837326,-1407.11,0.00024797,2]
[355153748,1740937837340,-504.66347643,0.00024797,2]
[355153750,1740937837351,-500.0,0.00024797,2]
[355153752,1740937837362,-504.72480808,0.00024797,2]
[355153754,1740937837372,-500.0,0.00024797,2]
[355153756,1740937837383,-500.0,0.00024797,2]
[355153758,1740937837394,-500.0,0.00024797,2]
[355153760,1740937837404,-500.0,0.00024797,2]
[355153762,1740937837415,-500.0,0.00024797,2]
[355153764,1740937837431,-500.0,0.00024797,2]
[355153766,1740937837443,-500.0,0.00024797,2]
[355153768,1740937837454,-500.0,0.00024797,2]
[355153770,1740937837465,-500.0,0.00024797,2]
[355153772,1740937837474,-500.0,0.00024797,2]
[355153774,1740937837486,-500.0,0.00024797,2]
[355153776,1740937837497,-500.0,0.00024797,2]
[355153778,1740937837508,-500.0,0.00024797,2]
[355153780,1740937837519,-500.0,0.00024797,2]
[355153783,1740937837531,-500.0,0.00024797,2]
[355153785,1740937837543,-500.0,0.00024797,2]
[355153786,1740937837555,-500.0,0.00024797,2]
[355153789,1740937837567,-500.0,0.00024797,2]
[355153791,1740937837578,-495.08410386,0.00024797,2]
[355153793,1740937837589,-500.0,0.00024797,2]
[355153795,1740937837600,-686.18,0.00024797,2]
[355153797,1740937837611,-500.0,0.00024797,2]
[355153799,1740937837622,-500.0,0.00024797,2]
[355153801,1740937837632,-500.0,0.00024797,2]
[355153803,1740937837643,-500.0,0.00024797,2]
[355153805,1740937837654,-500.0,0.00024797,2]
[355153808,1740937837666,-500.0,0.00024797,2]
[355153810,1740937837681,-500.0,0.00024797,2]
[355153812,1740937837692,-500.0,0.00024797,2]
[355153814,1740937837702,-500.0,0.00024797,2]
[355153816,1740937837713,-500.0,0.00024797,2]
[355153818,1740937837724,-513.01190678,0.00024797,2]
[355153820,1740937837735,-500.0,0.00024797,2]
[355153823,1740937837746,-500.0,0.00024797,2]
[355153825,1740937837756,-500.0,0.00024797,2]
[355153827,1740937837767,-507.14002046,0.00024797,2]
[355153829,1740937837778,-500.0,0.00024797,2]
[355153831,1740937837789,-500.0,0.00024797,2]
[355153835,1740937837800,-506.49966988,0.00024797,2]
[355153837,1740937837811,-500.0,0.00024797,2]
[355153840,1740937837823,-500.0,0.00024797,2]
[355153843,1740937837834,-505.7640413,0.00024797,2]
[355153846,1740937837845,-500.0,0.00024797,2]
[355153848,1740937837856,-500.0,0.00024797,2]
[355153851,1740937837867,-500.0,0.00024797,2]
[355153853,1740937837880,-649.02,0.00024797,2]
[355153855,1740937837892,-500.0,0.00024797,2]
[355153857,1740937837905,-500.0,0.00024797,2]
[355153860,1740937837922,-500.0,0.00024797,2]
[355153865,1740937837934,-500.0,0.00024797,2]
[355153870,1740937837950,-505.84690666,0.00024797,2]
[355153874,1740937837961,-502.63269579,0.00024797,2]
[355153878,1740937837973,-500.0,0.00024797,2]
[355153882,1740937837985,-502.67920892,0.00024797,2]
[355153885,1740937837995,-765.63,0.00024797,2]
[355153888,1740937838007,-500.0,0.00024797,2]
[355153892,1740937838019,-500.0,0.00024797,2]
[355153895,1740937838030,-500.0,0.00024797,2]
[355153900,1740937838041,-1189.75,0.00024797,2]
[355153904,1740937838052,-501.56737192,0.00024797,2]
[355153909,1740937838063,-506.2344639,0.00024797,2]
[355153912,1740937838074,-500.0,0.00024797,2]
[355153915,1740937838084,-500.0,0.00024797,2]
[355153918,1740937838094,-500.0,0.00024797,2]
[355153921,1740937838104,-533.52,0.00024797,2]
[355153924,1740937838115,-502.21568264,0.00024797,2]
[355153926,1740937838126,-500.0,0.00024797,2]
[355153928,1740937838136,-500.0,0.00024797,2]
[355153930,1740937838147,-500.0,0.00024797,2]
[355153933,1740937838159,-500.0,0.00024797,2]
[355153936,1740937838172,-767.22,0.00024797,2]
[355153939,1740937838182,-515.84191771,0.00024797,2]
[355153942,1740937838193,-502.05031564,0.00024797,2]
[355153945,1740937838204,-2132.66,0.00024797,2]
[355153948,1740937838215,-500.0,0.00024797,2]
[355153951,1740937838226,-500.0,0.00024797,2]
[355153954,1740937838236,-500.0,0.00024798,2]
[355153957,1740937838247,-500.0,0.00024798,2]
[355153960,1740937838258,-500.0,0.00024798,2]
[355153965,1740937838269,-500.0,0.00024798,2]
[355153967,1740937838280,-500.0,0.00024798,2]
[355153970,1740937838290,-503.8439656,0.00024798,2]
[355153973,1740937838301,-500.0,0.00024798,2]
[355153976,1740937838311,-514.96273542,0.00024798,2]
[355153978,1740937838322,-500.0,0.00024798,2]
[355153980,1740937838332,-500.0,0.00024798,2]
[355153982,1740937838342,-500.0,0.00024798,2]
[355153984,1740937838353,-501.91818323,0.00024798,2]
[355153986,1740937838363,-500.0,0.00024798,2]
[355153988,1740937838373,-500.0,0.00024798,2]
[355153990,1740937838383,-500.0,0.00024798,2]
[355153992,1740937838395,-500.0,0.00024798,2]
[355153994,1740937838406,-500.0,0.00024798,2]
[355153996,1740937838416,-500.0,0.00024798,2]
[355153998,1740937838431,-504.88048986,0.00024798,2]
[355154001,1740937838442,-500.0,0.00024798,2]
[355154003,1740937838452,-500.0,0.00024798,2]
[355154005,1740937838469,-500.0,0.00024798,2]
[355154007,1740937838481,-397.43200366,0.00024798,2]
[355154009,1740937838492,-502.39750926,0.00024798,2]
[355154011,1740937838502,-500.0,0.00024798,2]
[355154013,1740937838514,-500.0,0.00024798,2]
[355154015,1740937838525,-500.0,0.00024798,2]
[355154017,1740937838535,-500.0,0.00024798,2]
[355154019,1740937838546,-500.0,0.00024798,2]
[355154022,1740937838557,-500.0,0.00024798,2]
[355154024,1740937838569,-500.0,0.00024798,2]
[355154026,1740937838580,-500.0,0.00024798,2]
[355154028,1740937838591,-500.0,0.00024798,2]
[355154030,1740937838602,-500.0,0.00024798,2]
[355154032,1740937838614,-500.0,0.00024798,2]
[355154034,1740937838624,-500.0,0.00024798,2]
[355154036,1740937838636,-500.0,0.00024798,2]
[355154039,1740937838647,-500.0,0.00024798,2]
[355154041,1740937838659,-500.0,0.00024798,2]
[355154043,1740937838673,-500.0,0.00024798,2]
[355154045,1740937838684,-564.49792574,0.00024798,2]
[355154048,1740937838694,-561.04,0.00024798,2]
[355154050,1740937838705,-500.0,0.00024798,2]
[355154052,1740937838717,-500.0,0.00024798,2]
[355154054,1740937838728,-501.34171887,0.00024798,2]
[355154056,1740937838739,-571.0,0.00024798,2]
[355154058,1740937838750,-500.0,0.00024798,2]
[355154060,1740937838760,-500.0,0.00024798,2]
[355154062,1740937838771,-500.0,0.00024798,2]
[355154064,1740937838781,-500.0,0.00024798,2]
[355154066,1740937838792,-500.0,0.00024798,2]
[355154068,1740937838802,-500.0,0.00024798,2]
[355154071,1740937838814,-500.0,0.00024798,2]
[355154073,1740937838825,-500.0,0.00024798,2]
[355154075,1740937838836,-500.0,0.00024798,2]
[355154077,1740937838847,-500.0,0.00024798,2]
[355154079,1740937838858,-500.0,0.00024798,2]
[355154081,1740937838868,-500.0,0.00024798,2]
[355154083,1740937838879,-500.0,0.00024798,2]
[355154085,1740937838889,-500.0,0.00024798,2]
[355154087,1740937838899,-505.03158004,0.00024798,2]
[355154089,1740937838911,-500.0,0.00024798,2]
[355154091,1740937838928,-500.0,0.00024798,2]
[355154093,1740937838939,-500.0,0.00024798,2]
[355154096,1740937838954,-500.0,0.00024798,2]
[355154098,1740937838964,-500.0,0.00024798,2]
[355154100,1740937838975,-500.0,0.00024798,2]
[355154102,1740937838986,-500.0,0.00024798,2]
[355154104,1740937838996,-500.0,0.00024798,2]
[355154106,1740937839007,-511.86387147,0.00024798,2]
[355154108,1740937839018,-500.0,0.00024798,2]
[355154110,1740937839029,-500.0,0.00024798,2]
[355154112,1740937839039,-500.0,0.00024798,2]
[355154114,1740937839049,-501.82886592,0.00024798,2]
[355154116,1740937839060,-500.0,0.00024798,2]
[355154118,1740937839071,-500.0,0.00024798,2]
[355154120,1740937839082,-491.32406986,0.00024798,2]
[355154122,1740937839094,-500.0,0.00024798,2]
[355154124,1740937839108,-500.0,0.00024798,2]
[355154126,1740937839119,-500.0,0.00024798,2]
[355154128,1740937839131,-500.0,0.00024798,2]
[355154130,1740937839141,-500.0,0.00024798,2]
[355154132,1740937839152,-500.0,0.00024798,2]
[355154135,1740937839164,-500.0,0.00024798,2]
[355154137,1740937839184,-500.0,0.00024798,2]
[355154139,1740937839198,-506.63010741,0.00024798,2]
[355154141,1740937839211,-500.0,0.00024798,2]
[355154169,1740937839490,-500.0,0.00024798,2]
[355154172,1740937839502,-500.0,0.00024798,2]
[355154174,1740937839512,-500.0,0.00024798,2]
[355154176,1740937839523,-500.0,0.00024798,2]
[355154178,1740937839533,-510.90654863,0.00024798,2]
[355154180,1740937839545,-500.0,0.00024798,2]
[355154182,1740937839556,-500.0,0.00024798,2]
[355154184,1740937839566,-220.19615087,0.00024798,2]
[355154186,1740937839576,-500.0,0.00024798,2]
[355154188,1740937839586,-500.0,0.00024798,2]
[355154190,1740937839596,-605.66900272,0.00024798,2]
[355154192,1740937839607,-500.0,0.00024798,2]
[355154194,1740937839617,-500.0,0.00024798,2]
[355154196,1740937839628,-500.0,0.00024798,2]
[355154198,1740937839639,-500.0,0.00024798,2]
[355154200,1740937839649,-500.0,0.00024798,2]
[355154203,1740937839659,-500.0,0.00024798,2]
[355154204,1740937839672,-500.0,0.00024798,2]
[355154207,1740937839683,-500.0,0.00024798,2]
[355154209,1740937839694,-500.0,0.00024798,2]
[355154211,1740937839704,-554.65,0.00024798,2]
[355154213,1740937839714,-500.0,0.00024798,2]
[355154215,1740937839724,-500.0,0.00024798,2]
[355154217,1740937839734,-500.0,0.00024798,2]
[355154219,1740937839745,-500.0,0.00024798,2]
[355154221,1740937839755,-500.0,0.00024798,2]
[355154223,1740937839765,-403.6817409,0.00024798,2]
[355154227,1740937839784,-96.3182591,0.00024798,2]
[355154229,1740937839795,-500.0,0.00024798,2]
[355154231,1740937839805,-500.0,0.00024798,2]
[355154233,1740937839815,-141.6817409,0.00024798,2]
[355154235,1740937839827,-358.3182591,0.00024798,2]
[355154237,1740937839838,-500.0,0.00024798,2]
[355154239,1740937839848,-500.0,0.00024798,2]
[355154241,1740937839858,-500.0,0.00024798,2]
[355154243,1740937839867,-500.0,0.00024798,2]
[355154245,1740937839878,-500.0,0.00024798,2]
[355154248,1740937839888,-257.99057943,0.00024798,2]
[355154250,1740937839898,-500.0,0.00024798,2]
[355154253,1740937839910,-148.24116147,0.00024798,2]
[355154259,1740937839957,-351.75883853,0.00024798,2]
[355154261,1740937839967,-255.99116147,0.00024798,2]
[355154347,1740937840952,-567.64493272,0.00024796,2]
[355154349,1740937840963,-298.40938385,0.00024796,2]
[355154351,1740937840973,-244.00883853,0.00024798,2]
[355154353,1740937840984,-450.08381979,0.00024798,2]
[355154355,1740937840994,-500.0,0.00024798,2]
[355154357,1740937841006,-500.0,0.00024798,2]
[355154360,1740937841018,-500.0,0.00024798,2]
[355154361,1740937841027,-502.75107988,0.00024798,2]
[355154363,1740937841037,-500.0,0.00024798,2]
[355154365,1740937841046,-500.0,0.00024798,2]
[355154368,1740937841056,-252.32020662,0.00024798,2]
[355154370,1740937841065,-500.0,0.00024798,2]
[355154372,1740937841075,-502.12239116,0.00024798,2]
[355154375,1740937841084,-500.0,0.00024798,2]
[355154377,1740937841094,-500.0,0.00024798,2]
[355154378,1740937841104,-500.0,0.00024798,2]
[355154381,1740937841115,-500.0,0.00024798,2]
[355154383,1740937841124,-500.0,0.00024798,2]
[355154385,1740937841134,-500.0,0.00024798,2]
[355154387,1740937841144,-500.0,0.00024798,2]
[355154389,1740937841154,-500.0,0.00024798,2]
[355154391,1740937841163,-501.46371799,0.00024798,2]
[355154393,1740937841177,-511.85619143,0.00024798,2]
[355154394,1740937841187,-500.0,0.00024798,2]
[355154397,1740937841198,-500.0,0.00024798,2]
[355154399,1740937841208,-500.0,0.00024798,2]
[355154401,1740937841218,-500.0,0.00024798,2]
[355154402,1740937841228,-500.0,0.00024798,2]
[355154404,1740937841238,-500.0,0.00024798,2]
[355154406,1740937841248,-500.0,0.00024798,2]
[355154408,1740937841258,-502.32822745,0.00024798,2]
[355154411,1740937841268,-383.40267689,0.00024798,2]
[355154413,1740937841278,-300.0,0.00024798,2]